bitfinex/quotes_BTCUSD_20240717
["timestamp","ask_amount","ask_price","bid_price","bid_amount"]
[1721196408590,0.00839,65816.0,65815.0,1.921351]
[1721196408805,0.00839,65816.0,65815.0,2.84921387]
[1721196408997,0.00839,65816.0,65815.0,3.02025515]
[1721196409597,0.00839,65816.0,65815.0,3.72025515]
[1721196410003,0.00839,65816.0,65815.0,3.96107363]
[1721196410200,0.00839,65816.0,65815.0,4.02413382]
[1721196410483,0.00839,65816.0,65815.0,4.05213382]
[1721196411703,0.00839,65816.0,65815.0,4.03813382]
[1721196412299,0.00839,65816.0,65815.0,4.05213382]
[1721196413255,0.00839,65816.0,65815.0,4.05211758]
[1721196414669,0.00839,65816.0,65815.0,4.06611758]
[1721196415067,0.00839,65816.0,65815.0,4.14071758]
[1721196415263,0.00839,65816.0,65815.0,4.19071758]
[1721196415633,0.00839,65816.0,65815.0,4.19071771]
[1721196416566,0.00839,65816.0,65815.0,4.19072095]
[1721196417011,0.00839,65816.0,65815.0,3.88683895]
[1721196417181,0.00839,65816.0,65815.0,3.67918696]
[1721196417400,0.00839,65816.0,65815.0,3.47918696]
[1721196417606,0.00839,65816.0,65815.0,3.11224416]
[1721196418143,0.00839,65816.0,65815.0,2.41224416]
[1721196418579,0.00839,65816.0,65815.0,2.47531015]
[1721196418976,0.00839,65816.0,65815.0,2.52531015]
[1721196419541,0.00839,65816.0,65815.0,2.14694016]
[1721196419743,0.00839,65816.0,65815.0,2.52532746]
[1721196421484,0.00839,65816.0,65815.0,2.32076139]
[1721196421684,0.00839,65816.0,65815.0,2.52076139]
[1721196421885,0.00839,65816.0,65815.0,2.57076139]
[1721196422094,0.00839,65816.0,65815.0,2.52532746]
[1721196422495,0.00839,65816.0,65815.0,2.57081188]
[1721196422894,0.00839,65816.0,65815.0,2.52532746]
[1721196423118,0.00839,65816.0,65815.0,3.40276597]
[1721196423331,0.00839,65816.0,65815.0,3.35276597]
[1721196423538,0.00839,65816.0,65815.0,3.06072553]
[1721196423750,0.00839,65816.0,65815.0,2.96978397]
[1721196423946,0.00839,65816.0,65815.0,2.54357524]
[1721196424302,0.00839,65816.0,65815.0,2.47532746]
[1721196424734,0.00839,65816.0,65815.0,2.54357524]
[1721196425126,0.00839,65816.0,65815.0,2.16000574]
[1721196425333,0.00839,65816.0,65815.0,2.47533369]
[1721196425719,0.00839,65816.0,65815.0,2.88042183]
[1721196425977,0.00839,65816.0,65815.0,2.54360976]
[1721196426192,0.00839,65816.0,65815.0,2.47533369]
[1721196426810,0.00839,65816.0,65815.0,2.93041608]
[1721196427122,0.00839,65816.0,65815.0,3.15830055]
[1721196427325,0.00839,65816.0,65815.0,3.24933531]
[1721196427532,0.00839,65816.0,65815.0,3.46218255]
[1721196428453,0.00839,65816.0,65815.0,3.20988008]
[1721196428745,0.00839,65816.0,65815.0,3.46212042]
[1721196428991,0.00839,65816.0,65815.0,3.46212045]
[1721196429702,0.00839,65816.0,65815.0,3.39932045]
[1721196429927,0.00839,65816.0,65815.0,3.39932078]
[1721196430946,0.00839,65816.0,65815.0,4.29932078]
[1721196431636,0.00839,65816.0,65815.0,4.36322422]
[1721196434256,0.00839,65816.0,65815.0,4.36322359]
[1721196434798,0.00839,65816.0,65815.0,4.36321708]
[1721196435411,0.00839,65816.0,65815.0,4.66709908]
[1721196436078,0.00839,65816.0,65815.0,4.8037428]
[1721196436653,0.00839,65816.0,65815.0,4.66709908]
[1721196436854,0.00839,65816.0,65815.0,4.36321708]
[1721196437251,0.00839,65816.0,65815.0,4.4998608]
[1721196438113,0.00839,65816.0,65815.0,4.49989173]
[1721196440996,0.00839,65816.0,65815.0,3.79989173]
[1721196441219,0.00839,65816.0,65815.0,3.01114114]
[1721196441429,0.00839,65816.0,65815.0,3.7904938]
[1721196443865,0.00839,65816.0,65815.0,4.4904938]
[1721196444021,0.00839,65816.0,65815.0,3.7970118]
[1721196444400,0.00839,65816.0,65815.0,3.86033564]
[1721196444601,0.00839,65816.0,65815.0,4.16421764]
[1721196444801,0.00839,65816.0,65815.0,4.21421764]
[1721196445518,0.00839,65816.0,65815.0,3.66033564]
[1721196445723,0.08459,65816.0,65815.0,2.71659858]
[1721196445967,0.15009,65816.0,65815.0,1.95148355]
[1721196446210,0.15009,65816.0,65815.0,1.39006945]
[1721196447542,0.15009,65816.0,65815.0,1.39009543]
[1721196447774,0.15009,65816.0,65815.0,0.18153229]
[1721196447986,0.17257035,65816.0,65815.0,0.18153229]
[1721196448192,0.17257035,65816.0,65815.0,0.05538942]
[1721196448812,0.17257035,65816.0,65815.0,0.04138942]
[1721196449024,0.17534132,65816.0,65815.0,0.04138942]
[1721196449234,0.17257035,65816.0,65815.0,0.02738942]
[1721196449444,0.17257035,65816.0,65815.0,0.46921242]
[1721196449859,0.17257035,65816.0,65815.0,0.47521242]
[1721196450646,0.17255622,65816.0,65815.0,0.47521242]
[1721196450973,0.17255622,65816.0,65815.0,0.48921242]
[1721196451106,0.17255622,65816.0,65815.0,0.47521242]
[1721196451301,0.15009,65816.0,65815.0,0.47521242]
[1721196451604,0.15009,65816.0,65815.0,0.48021242]
[1721196453068,0.15009,65816.0,65815.0,0.78409442]
[1721196453672,0.15009,65816.0,65815.0,1.08797642]
[1721196454105,0.07389,65816.0,65815.0,1.24235816]
[1721196455866,0.07389,65816.0,65815.0,1.46850764]
[1721196456111,0.00839,65816.0,65815.0,1.46850764]
[1721196456943,0.00839,65816.0,65815.0,1.46850525]
[1721196458110,0.00839,65816.0,65815.0,1.77238725]
[1721196458604,0.00839,65816.0,65815.0,2.12626925]
[1721196458807,0.00839,65816.0,65815.0,2.20486925]
[1721196459010,0.00839,65816.0,65815.0,2.42311969]
[1721196459220,0.00839,65816.0,65815.0,3.9231162]
[1721196459416,0.00839,65816.0,65815.0,3.90486925]
[1721196459622,0.00839,65816.0,65815.0,3.89886925]
[1721196460048,0.00839,65816.0,65815.0,2.27272216]
[1721196460224,0.00839,65816.0,65815.0,2.39884443]
[1721196460424,0.00839,65816.0,65815.0,2.39384443]
[1721196460865,0.00839,65816.0,65815.0,2.39884443]
[1721196461071,0.00839,65816.0,65815.0,1.84996243]
[1721196461303,0.00839,65816.0,65815.0,1.91320941]
[1721196461531,0.00839,65816.0,65815.0,1.84496243]
[1721196461732,0.00839,65816.0,65815.0,1.87831819]
[1721196461960,0.00839,65816.0,65815.0,1.92831819]
[1721196462143,0.00839,65816.0,65815.0,1.91431819]
[1721196462493,0.00839,65816.0,65815.0,1.90931819]
[1721196462701,0.00839,65816.0,65815.0,1.92331819]
[1721196463281,0.00839,65816.0,65815.0,2.22720585]
[1721196463792,0.00839,65816.0,65815.0,2.21320585]
[1721196464935,0.00839,65816.0,65815.0,2.22812985]
[1721196465263,0.00839,65816.0,65815.0,2.21412985]
[1721196465623,0.00839,65816.0,65815.0,2.22812985]
[1721196466698,0.00839,65816.0,65815.0,2.10200192]
[1721196466910,0.00839,65816.0,65815.0,2.22812984]
[1721196467166,0.00839,65816.0,65815.0,2.21412984]
[1721196467501,0.00839,65816.0,65815.0,2.22812984]
[1721196468368,0.00839,65816.0,65815.0,2.22277408]
[1721196470724,0.00839,65816.0,65815.0,2.94102175]
[1721196471964,0.00839,65816.0,65815.0,2.89102175]
[1721196472748,0.00839,65816.0,65815.0,2.63713975]
[1721196472944,0.00839,65816.0,65815.0,2.63713952]
[1721196473448,0.00839,65816.0,65815.0,2.94102152]
[1721196473622,0.00839,65816.0,65815.0,2.89102152]
[1721196473824,0.00839,65816.0,65815.0,2.24102152]
[1721196474214,0.00839,65816.0,65815.0,1.93713952]
[1721196474659,0.00839,65816.0,65815.0,1.80853952]
[1721196474873,0.08809,65816.0,65815.0,1.18252788]
[1721196475040,0.08809,65816.0,65815.0,1.38640988]
[1721196475041,0.15449,65816.0,65815.0,1.38640988]
[1721196475244,0.15449,65816.0,65815.0,1.39069541]
[1721196475649,0.15449,65816.0,65815.0,0.32466767]
[1721196475890,0.15449,65816.0,65815.0,0.50242195]
[1721196477062,0.15449,65816.0,65815.0,0.48842195]
[1721196477286,0.15449,65816.0,65815.0,0.01859895]
[1721196477477,0.15449,65816.0,65815.0,0.19853995]
[1721196478176,0.15449,65816.0,65815.0,0.50242195]
[1721196480315,0.15449,65816.0,65815.0,0.80630395]
[1721196480563,0.00839,65816.0,65815.0,1.46456769]
[1721196480740,0.00839,65816.0,65815.0,1.59072376]
[1721196481797,0.00839,65816.0,65815.0,1.59071391]
[1721196483918,0.00839,65816.0,65815.0,1.99459591]
[1721196484903,0.00839,65816.0,65815.0,1.69071235]
[1721196485114,0.14959,65816.0,65815.0,1.18683035]
[1721196485315,0.14959,65816.0,65815.0,0.60242195]
[1721196485518,0.14959,65816.0,65815.0,0.50242195]
[1721196486756,0.14959,65816.0,65815.0,0.03259895]
[1721196486963,0.14959,65816.0,65815.0,0.01920953]
[1721196487217,0.14959,65816.0,65815.0,0.028924]
[1721196487418,0.14959,65816.0,65815.0,0.03259896]
[1721196487964,0.301528,65816.0,65815.0,0.03059896]
[1721196488159,0.30429897,65816.0,65815.0,0.03059896]
[1721196488413,0.301528,65816.0,65815.0,0.01859896]
[1721196488847,0.301528,65816.0,65815.0,0.02459896]
[1721196490062,0.301528,65816.0,65815.0,0.02959896]
[1721196490980,0.14959,65816.0,65815.0,0.02959896]
[1721196491725,0.301528,65816.0,65815.0,0.02959896]
[1721196491920,0.301528,65816.0,65815.0,0.011924]
[1721196492123,0.301528,65816.0,65815.0,0.02959896]
[1721196492387,0.301528,65816.0,65815.0,0.011924]
[1721196492539,0.301528,65816.0,65815.0,0.02959896]
[1721196492742,0.301528,65816.0,65815.0,0.011924]
[1721196492942,0.301528,65816.0,65815.0,0.02959896]
[1721196493148,0.301528,65816.0,65815.0,0.011924]
[1721196493557,0.909282,65816.0,65815.0,0.011924]
[1721196497491,1.213159,65816.0,65815.0,0.011924]
[1721196498998,1.263159,65816.0,65815.0,0.011924]
[1721196499135,1.72141774,65816.0,65815.0,0.011924]
[1721196499937,1.72141774,65816.0,65815.0,0.006924]
[1721196500141,1.67141774,65816.0,65815.0,0.006924]
[1721196500388,1.67241774,65816.0,65815.0,0.006924]
[1721196500920,1.67141774,65816.0,65815.0,0.006924]
[1721196501319,1.67241774,65816.0,65815.0,0.000924]
[1721196501716,1.67341774,65816.0,65815.0,0.000924]
[1721196502226,1.36954074,65816.0,65815.0,0.000924]
[1721196504800,0.607405,65816.0,65815.0,0.000924]
[1721196505637,0.911282,65816.0,65815.0,0.000924]
[1721196507940,0.607405,65816.0,65815.0,0.000924]
[1721196508346,0.15159,65816.0,65815.0,0.000924]
[1721196508637,0.07379,65816.0,65815.0,0.000924]
[1721196508837,0.01039,65816.0,65815.0,0.152865]
[1721196509041,0.01039,65816.0,65815.0,0.01859896]
[1721196509823,0.00939,65816.0,65815.0,0.01859896]
[1721196510227,0.01039,65816.0,65815.0,0.17053996]
[1721196510627,0.00939,65816.0,65815.0,0.47442196]
[1721196511280,0.01039,65816.0,65815.0,0.47442196]
[1721196511622,0.01039,65816.0,65815.0,0.01859896]
[1721196512120,0.07269,65816.0,65815.0,0.01859896]
[1721196512329,0.01039,65816.0,65815.0,0.01859896]
[1721196513606,0.01239,65816.0,65815.0,0.01859896]
[1721196513807,0.01239,65816.0,65815.0,0.17053996]
[1721196514006,0.00839,65816.0,65815.0,0.17053996]
[1721196514272,0.00939,65816.0,65815.0,0.17053996]
[1721196514472,0.01139,65816.0,65815.0,0.17053996]
[1721196514801,0.01139,65816.0,65815.0,0.47442196]
[1721196516759,0.01139,65816.0,65815.0,0.77830396]
[1721196517749,0.00939,65816.0,65815.0,0.77830396]
[1721196518023,0.00839,65816.0,65815.0,0.47442196]
[1721196518240,0.00839,65816.0,65815.0,0.47542196]
[1721196518460,0.00839,65816.0,65815.0,0.47642196]
[1721196519634,0.00839,65816.0,65815.0,0.78030396]
[1721196520081,0.00839,65816.0,65815.0,0.47642196]
[1721196521281,0.00839,65816.0,65815.0,0.17253996]
[1721196521509,0.15649,65816.0,65815.0,0.02059896]
[1721196522105,0.15926097,65816.0,65815.0,0.02059896]
[1721196523816,0.07766097,65816.0,65815.0,0.02059896]
[1721196524748,0.22959897,65816.0,65815.0,0.02059896]
[1721196524903,0.226828,65816.0,65815.0,0.02059896]
[1721196527854,0.07489,65816.0,65815.0,0.02059896]
[1721196528072,0.07766097,65816.0,65815.0,0.02059896]
[1721196528879,0.01116097,65816.0,65815.0,0.02059896]
[1721196530664,0.01116097,65816.0,65815.0,0.002924]
[1721196531166,0.00839,65816.0,65815.0,0.458747]
[1721196531364,0.00839,65816.0,65815.0,0.78046688]
[1721196531567,0.160328,65816.0,65815.0,0.02076188]
[1721196531767,0.00839,65816.0,65815.0,0.02076188]
[1721196531992,0.01116097,65816.0,65815.0,0.02076188]
[1721196532166,0.01116097,65816.0,65815.0,0.002924]
[1721196532371,0.00839,65816.0,65815.0,0.002924]
[1721196532584,0.00839,65816.0,65815.0,0.154865]
[1721196532785,0.00839,65816.0,65815.0,0.458747]
[1721196534403,0.00839,65816.0,65815.0,0.92216688]
[1721196535253,0.00839,65816.0,65815.0,1.38043062]
[1721196535511,0.00839,65816.0,65815.0,1.5065953]
[1721196536484,0.00839,65816.0,65815.0,1.5065837]
[1721196538567,0.00839,65816.0,65815.0,1.5055837]
[1721196539017,0.00839,65816.0,65815.0,1.5085837]
[1721196539421,0.00839,65816.0,65815.0,1.5075837]
[1721196539616,0.00839,65816.0,65815.0,1.50758088]
[1721196539891,0.00839,65816.0,65815.0,1.50958088]
[1721196540314,0.00839,65816.0,65815.0,1.50758088]
[1721196540687,0.00839,65816.0,65815.0,1.51058088]
[1721196541199,0.00839,65816.0,65815.0,1.81146288]
[1721196541371,0.00839,65816.0,65815.0,1.91146288]
[1721196541601,0.00839,65816.0,65815.0,1.96846288]
[1721196541799,0.00839,65816.0,65815.0,2.26934488]
[1721196542000,0.00839,65816.0,65815.0,2.45853702]
[1721196542159,0.00839,65816.0,65815.0,2.46653702]
[1721196542365,0.00839,65816.0,65815.0,2.45853702]
[1721196542782,0.00839,65816.0,65815.0,2.46153702]
[1721196543033,0.00839,65816.0,65815.0,2.45153702]
[1721196543208,0.00839,65816.0,65815.0,2.46153702]
[1721196543415,0.00839,65816.0,65815.0,2.47153702]
[1721196543623,0.00839,65816.0,65815.0,2.46153702]
[1721196543967,0.00839,65816.0,65815.0,2.85658115]
[1721196544168,0.00839,65816.0,65815.0,2.87058115]
[1721196544395,0.00839,65816.0,65815.0,3.23380076]
[1721196544595,0.00839,65816.0,65815.0,3.21097596]
[1721196545167,0.00839,65816.0,65815.0,2.96231616]
[1721196545550,0.00839,65816.0,65815.0,2.97631616]
[1721196547261,0.00839,65816.0,65815.0,2.99031616]
[1721196547654,0.00839,65816.0,65815.0,2.97631616]
[1721196547855,0.00839,65816.0,65815.0,2.27631616]
[1721196548078,0.00839,65816.0,65815.0,2.29031616]
[1721196548374,0.00839,65816.0,65815.0,2.27631897]
[1721196548525,0.00839,65816.0,65815.0,2.29456612]
[1721196548927,0.00839,65816.0,65815.0,2.30856612]
[1721196549696,0.00839,65816.0,65815.0,2.00468412]
[1721196549994,0.00839,65816.0,65815.0,2.01868412]
[1721196550576,0.00839,65816.0,65815.0,1.99068412]
[1721196550923,0.00839,65816.0,65815.0,2.67668412]
[1721196551117,0.00839,65816.0,65815.0,2.69068412]
[1721196551320,0.00839,65816.0,65815.0,2.99456612]
[1721196551502,0.00839,65816.0,65815.0,2.85019462]
[1721196551706,0.00839,65816.0,65815.0,2.98056576]
[1721196552042,0.00839,65816.0,65815.0,3.00856576]
[1721196552429,0.00839,65816.0,65815.0,2.97631865]
[1721196552585,0.00839,65816.0,65815.0,2.99031865]
[1721196553206,0.00839,65816.0,65815.0,3.00431865]
[1721196553568,0.00839,65816.0,65815.0,2.99031865]
[1721196553705,0.00839,65816.0,65815.0,3.00431865]
[1721196554105,0.00839,65816.0,65815.0,2.99031865]
[1721196554325,0.00839,65816.0,65815.0,2.99870865]
[1721196554874,0.00839,65816.0,65815.0,2.88658462]
[1721196555010,0.00839,65816.0,65815.0,2.93470897]
[1721196555214,0.00839,65816.0,65815.0,2.81682697]
[1721196555414,0.00839,65816.0,65815.0,2.83082697]
[1721196555616,0.00839,65816.0,65815.0,2.80843697]
[1721196556104,0.00839,65816.0,65815.0,2.82243697]
[1721196556313,0.00839,65816.0,65815.0,2.10843697]
[1721196556708,0.00839,65816.0,65815.0,2.13643697]
[1721196557068,0.00839,65816.0,65815.0,2.12243697]
[1721196557264,0.00839,65816.0,65815.0,2.13643697]
[1721196557916,0.00839,65816.0,65815.0,2.13644833]
[1721196561035,0.00839,65816.0,65815.0,2.13645066]
[1721196561610,0.0022138,65816.0,65815.0,2.13645066]
[1721196562802,0.0022138,65816.0,65815.0,1.93645066]
[1721196562955,0.0022138,65816.0,65815.0,2.07335066]
[1721196563172,0.0022138,65816.0,65815.0,1.69086866]
[1721196563371,0.0022138,65816.0,65815.0,1.18698666]
[1721196564188,0.0022138,65816.0,65815.0,1.06084862]
[1721196564396,0.0022138,65816.0,65815.0,1.18699939]
[1721196565779,0.0680138,65816.0,65815.0,1.18699939]
[1721196566667,0.0680138,65816.0,65815.0,0.57923539]
[1721196566876,0.0680138,65816.0,65815.0,0.47923539]
[1721196567270,0.0680138,65816.0,65815.0,0.78311739]
[1721196567516,0.0680138,65816.0,65815.0,0.78312762]
[1721196567720,0.0680138,65816.0,65815.0,0.65696662]
[1721196567925,0.0680138,65816.0,65815.0,0.78312778]
[1721196568140,0.0680138,65816.0,65815.0,0.17292304]
[1721196568333,0.0680138,65816.0,65815.0,0.01876188]
[1721196568829,0.0680138,65816.0,65815.0,0.04676188]
[1721196569399,0.0680138,65816.0,65812.0,0.303894]
[1721196569596,0.00277097,65815.0,65813.0,0.151943]
[1721196569803,0.303891,65813.0,65808.0,0.1]
[1721196570007,0.00277097,65812.0,65809.0,0.12616676]
[1721196570217,0.00277097,65812.0,65810.0,0.12616676]
[1721196570423,0.00277097,65812.0,65807.0,0.151958]
[1721196570601,0.00277097,65812.0,65805.0,0.1]
[1721196570602,0.15471897,65812.0,65808.0,0.1]
[1721196570805,0.15471897,65812.0,65809.0,0.12616819]
[1721196571036,0.15471897,65812.0,65808.0,0.1]
[1721196571206,0.15471897,65812.0,65809.0,0.12616833]
[1721196571570,0.15471897,65812.0,65810.0,0.014]
[1721196571929,0.15471897,65812.0,65807.0,0.1]
[1721196572131,0.061,65811.0,65802.0,0.303939]
[1721196572370,0.303895,65813.0,65808.0,0.006]
[1721196572371,0.061,65809.0,65808.0,0.006]
[1721196573317,0.08278118,65809.0,65808.0,0.006]
[1721196573429,0.1375,65809.0,65808.0,0.006]
[1721196573629,0.311235,65809.0,65808.0,0.006]
[1721196573831,0.0662,65808.0,65804.0,0.151964]
[1721196575085,0.0672,65808.0,65804.0,0.151964]
[1721196576430,0.0672,65808.0,65800.0,0.30395]
[1721196576631,0.0672,65808.0,65801.0,0.25438174]
[1721196577028,0.151963,65806.0,65801.0,0.40635374]
[1721196577226,0.151963,65806.0,65804.0,0.009]
[1721196577227,0.151962,65806.0,65804.0,0.009]
[1721196577586,0.151962,65806.0,65801.0,0.1]
[1721196578002,0.151962,65806.0,65801.0,0.107]
[1721196578627,0.151962,65806.0,65801.0,0.1]
[1721196578827,0.219159,65808.0,65803.0,0.151968]
[1721196579031,0.001,65806.0,65803.0,0.151968]
[1721196579244,0.002,65806.0,65804.0,0.006]
[1721196579449,0.002,65806.0,65803.0,0.151968]
[1721196580325,0.001,65806.0,65801.0,0.555917]
[1721196580743,0.002,65806.0,65803.0,0.003]
[1721196580962,0.151959,65807.0,65803.0,0.003]
[1721196581363,0.001,65806.0,65803.0,0.009]
[1721196581567,0.001,65806.0,65803.0,0.006]
[1721196581798,0.002,65806.0,65803.0,0.006]
[1721196582185,0.151959,65807.0,65801.0,0.555917]
[1721196582566,0.151959,65807.0,65803.0,0.005]
[1721196583937,0.151959,65807.0,65803.0,0.004]
[1721196584141,0.001,65806.0,65803.0,0.01]
[1721196584509,0.151959,65807.0,65803.0,0.004]
[1721196585048,0.151959,65807.0,65803.0,0.009]
[1721196585250,0.151959,65807.0,65803.0,0.004]
[1721196585453,0.218157,65808.0,65803.0,0.151968]
[1721196585656,0.001,65806.0,65803.0,0.162968]
[1721196585936,0.002,65806.0,65804.0,0.0879]
[1721196586091,0.001,65806.0,65804.0,0.0879]
[1721196586295,0.001,65806.0,65804.0,0.239866]
[1721196586906,0.0662,65808.0,65804.0,0.239866]
[1721196587313,0.151955,65809.0,65805.0,0.151963]
[1721196587961,0.001,65806.0,65805.0,0.151963]
[1721196588524,0.002,65806.0,65805.0,0.153963]
[1721196588921,0.002,65806.0,65805.0,0.761819]
[1721196589151,0.001,65806.0,65805.0,1.35862874]
[1721196589367,0.002,65806.0,65805.0,1.89372384]
[1721196589578,0.002,65806.0,65805.0,1.94372384]
[1721196589776,0.002,65806.0,65805.0,1.89372384]
[1721196590114,0.00837,65818.0,65815.0,0.759705]
[1721196590115,0.06,65817.0,65815.0,0.759705]
[1721196590281,0.06,65817.0,65815.0,0.91408674]
[1721196592412,0.0032138,65816.0,65815.0,0.92108674]
[1721196593153,0.0032138,65816.0,65815.0,1.00318674]
[1721196593387,0.0032138,65816.0,65815.0,0.92708674]
[1721196593776,0.0032138,65816.0,65815.0,0.92108674]
[1721196593939,0.0042138,65816.0,65815.0,0.92808674]
[1721196594146,0.0032138,65816.0,65815.0,0.92108674]
[1721196594348,0.0032138,65816.0,65815.0,0.99738674]
[1721196594768,0.0022138,65816.0,65815.0,0.99038674]
[1721196595332,0.0032138,65816.0,65815.0,0.99638674]
[1721196595538,0.0032138,65816.0,65815.0,1.12254732]
[1721196595740,0.0032138,65816.0,65815.0,1.11654732]
[1721196596319,0.0032138,65816.0,65815.0,1.12254732]
[1721196596731,0.0042138,65816.0,65815.0,1.12954732]
[1721196597066,0.0052138,65816.0,65815.0,1.13554732]
[1721196597462,0.0042138,65816.0,65815.0,1.12854732]
[1721196597764,0.0052138,65816.0,65815.0,1.13554732]
[1721196598380,0.0062138,65816.0,65815.0,1.14254732]
[1721196598588,0.0042138,65816.0,65815.0,1.13054732]
[1721196599038,0.0042138,65816.0,65815.0,1.05424732]
[1721196599842,0.0042138,65816.0,65815.0,0.92808674]
[1721196600042,0.0052138,65816.0,65815.0,1.06024431]
[1721196600858,0.0052138,65816.0,65815.0,1.36412631]
[1721196601062,0.0052138,65816.0,65815.0,1.60392631]
[1721196601264,0.0052138,65816.0,65815.0,1.90780831]
[1721196602244,0.0052138,65816.0,65815.0,1.78165074]
[1721196602485,0.0052138,65816.0,65815.0,1.90779713]
[1721196603106,0.0052138,65816.0,65815.0,1.60391513]
[1721196603308,0.0052138,65816.0,65815.0,1.16023313]
[1721196605402,0.0052138,65816.0,65815.0,1.16024238]
[1721196608507,0.0052138,65816.0,65815.0,1.03408674]
[1721196608717,0.0052138,65816.0,65815.0,1.16024238]
[1721196615550,0.0052138,65816.0,65815.0,1.30734238]
[1721196617098,0.0052138,65816.0,65815.0,1.31944238]
[1721196617446,0.0052138,65816.0,65815.0,1.62332438]
[1721196618298,0.0052138,65816.0,65815.0,1.49716874]
[1721196618631,0.0052138,65816.0,65815.0,1.62332438]
[1721196619477,0.0052138,65816.0,65815.0,1.92720638]
[1721196619678,0.0052138,65816.0,65815.0,2.11642132]
[1721196619851,0.0052138,65816.0,65815.0,3.67948584]
[1721196620365,0.0052138,65816.0,65815.0,2.11642132]
[1721196620746,0.0032138,65816.0,65815.0,2.10242132]
[1721196621337,0.0032138,65816.0,65815.0,1.78705074]
[1721196621532,0.0022138,65816.0,65815.0,1.90719155]
[1721196621731,0.0032138,65816.0,65815.0,1.93519155]
[1721196622313,0.0022138,65816.0,65815.0,1.90719155]
[1721196622719,0.0022138,65816.0,65815.0,1.92119155]
[1721196622972,0.0032138,65816.0,65815.0,1.93519155]
[1721196624712,0.0032138,65816.0,65815.0,1.80905074]
[1721196624901,0.0032138,65816.0,65815.0,1.93519155]
[1721196625308,0.0032138,65816.0,65815.0,1.92119155]
[1721196625666,0.0032138,65816.0,65815.0,1.93519155]
[1721196625892,0.0022138,65816.0,65815.0,1.92119155]
[1721196626879,0.0032138,65816.0,65815.0,1.93519155]
[1721196627915,0.0032138,65816.0,65815.0,1.93519141]
[1721196628275,0.0032138,65816.0,65815.0,1.80905074]
[1721196628476,0.0032138,65816.0,65815.0,1.93519139]
[1721196629428,0.0032138,65816.0,65815.0,1.98519139]
[1721196629631,0.0032138,65816.0,65815.0,1.95175103]
[1721196630936,0.0032138,65816.0,65815.0,2.00175103]
[1721196631304,0.0032138,65816.0,65815.0,1.95175085]
[1721196631420,0.0032138,65816.0,65815.0,2.00175085]
[1721196631622,0.0032138,65816.0,65815.0,2.30563285]
[1721196631826,0.0032138,65816.0,65815.0,2.49483454]
[1721196632296,0.0032138,65816.0,65815.0,2.54032576]
[1721196632475,0.0032138,65816.0,65815.0,3.05235007]
[1721196632684,0.0032138,65816.0,65815.0,2.98569645]
[1721196632839,0.0032138,65816.0,65815.0,3.14335252]
[1721196633035,0.0032138,65816.0,65815.0,3.59469973]
[1721196633241,0.0032138,65816.0,65815.0,3.66294919]
[1721196633494,0.0032138,65816.0,65815.0,3.64893606]
[1721196633698,0.0022138,65816.0,65815.0,3.64893606]
[1721196634136,0.0032138,65816.0,65815.0,3.66293606]
[1721196634541,0.0042138,65816.0,65815.0,3.54561224]
[1721196635784,0.00299529,65816.0,65815.0,3.53161224]
[1721196635988,0.00299529,65816.0,65815.0,5.18571344]
[1721196636161,0.00299529,65816.0,65815.0,5.19971344]
[1721196636683,0.00299529,65816.0,65815.0,5.1086764]
[1721196637529,0.00299529,65816.0,65815.0,3.55866249]
[1721196638366,0.00299529,65816.0,65815.0,3.60866249]
[1721196639538,0.00299529,65816.0,65815.0,3.54559955]
[1721196640776,0.00299529,65816.0,65815.0,2.89349238]
[1721196640976,0.00299529,65816.0,65815.0,3.54559955]
[1721196641390,0.00299529,65816.0,65815.0,3.6138399]
[1721196642104,0.00299529,65816.0,65815.0,3.5638399]
[1721196642513,0.00299529,65816.0,65815.0,3.62690077]
[1721196642872,0.00299529,65816.0,65815.0,3.67690077]
[1721196643313,0.00299529,65816.0,65815.0,3.62690077]
[1721196644101,0.00299529,65816.0,65815.0,2.84349238]
[1721196644294,0.00299529,65816.0,65815.0,3.20431704]
[1721196644747,0.00299529,65816.0,65815.0,3.20431692]
[1721196645717,0.00299529,65816.0,65815.0,3.15882371]
[1721196646115,0.00299529,65816.0,65815.0,3.20431759]
[1721196647015,0.00299529,65816.0,65815.0,2.45882371]
[1721196647220,0.00299529,65816.0,65815.0,2.50431759]
[1721196647426,0.00299529,65816.0,65815.0,2.45882534]
[1721196649143,0.00299529,65816.0,65815.0,2.50882534]
[1721196649517,0.00299529,65816.0,65815.0,2.45882534]
[1721196650135,0.00299529,65816.0,65815.0,3.15882534]
[1721196650445,0.00299529,65816.0,65815.0,3.24662534]
[1721196650646,0.00299529,65816.0,65815.0,3.2466254]
[1721196651827,0.00299529,65816.0,65815.0,3.2966254]
[1721196652394,0.00299529,65816.0,65815.0,3.40518629]
[1721196653009,0.00299529,65816.0,65815.0,4.90518629]
[1721196653232,0.00299529,65816.0,65815.0,4.85969174]
[1721196653637,0.00299529,65816.0,65815.0,4.92793357]
[1721196653853,0.00299529,65816.0,65815.0,3.54399376]
[1721196654019,0.00299529,65816.0,65815.0,3.92237857]
[1721196654221,0.00299529,65816.0,65815.0,3.42792302]
[1721196654424,0.00299529,65816.0,65815.0,3.44940436]
[1721196654606,0.00299529,65816.0,65815.0,3.76472489]
[1721196654807,0.00299529,65816.0,65815.0,3.42792622]
[1721196655006,0.00299529,65816.0,65815.0,3.76472485]
[1721196655210,0.00299529,65816.0,65815.0,3.92238472]
[1721196655429,0.00299529,65816.0,65815.0,3.76472736]
[1721196655819,0.00299529,65816.0,65815.0,3.92238717]
[1721196656049,0.00299529,65816.0,65815.0,3.85413796]
[1721196656251,0.00299529,65816.0,65815.0,3.69647815]
[1721196656834,0.00299529,65816.0,65815.0,3.76473577]
[1721196657178,0.00299529,65816.0,65815.0,3.04435697]
[1721196657395,0.00299529,65816.0,65815.0,3.71473904]
[1721196657805,0.14239529,65816.0,65815.0,1.24036436]
[1721196658045,0.14239529,65816.0,65815.0,0.89678883]
[1721196658360,0.14239529,65816.0,65815.0,0.77065964]
[1721196658693,0.14239529,65816.0,65815.0,0.92260064]
[1721196658896,0.14239529,65816.0,65815.0,0.22260064]
[1721196659094,0.14239529,65816.0,65815.0,0.20860064]
[1721196659508,0.14239529,65816.0,65815.0,0.22260064]
[1721196660066,0.14239529,65816.0,65815.0,0.20860064]
[1721196660276,0.14239529,65816.0,65815.0,0.05665964]
[1721196660475,0.14139529,65816.0,65815.0,0.02865964]
[1721196660870,0.14239529,65816.0,65815.0,0.02865964]